[Event "RUS-ch Men Blitz 2019"]
[Site "Sochi"]
[Date "2019.10.17"]
[Round "2.6"]
[White "Lysyj, Igor"]
[Black "Pogromsky, Mikhail"]
[Result "1-0"]
[ECO "E10"]
[WhiteElo "2596"]
[BlackElo "2411"]
[Annotator "ChessBase"]
[PlyCount "89"]
[EventDate "2019.10.17"]
[EventType "swiss"]
[EventCountry "RUS"]
[SourceTitle "playchess.com"]
[Source "ChessBase"]
[SourceQuality "1"]
[TimeControl "180+2"]

1. d4 {[%emt 0:00:00]} Nf6 {[%emt 0:00:00]} 2. c4 {[%emt 0:00:01]} e6 {[%emt 0:00:02]} 3. Nf3 {[%emt 0:00:01]} d5 {[%emt 0:00:03]} 4. g3 {[%emt 0:00:01]} g6 {[%emt 0:00:07]} 5. Bg2 {[%emt 0:00:02]} Bg7 {[%emt 0:00:01]} 6. O-O {[%emt 0:00:02]} O-O {[%emt 0:00:02]} 7. Qc2 {[%emt 0:00:02]} Nc6 {[%emt 0:00:10]} 8. Rd1 {[%emt 0:00:05]} Ne4 {[%emt 0:00:05]} 9. Nc3 {[%emt 0:00:15]} f5 {[%emt 0:00:04]} 10. a3 {[%emt 0:00:34]} h6 {[%emt 0:00:21]} 11. b4 {[%emt 0:00:21]} g5 {[%emt 0:00:20]} 12. cxd5 {[%emt 0:00:14]} exd5 {[%emt 0:00:07]} 13. Bb2 {[%emt 0:00:01]} Be6 {[%emt 0:00:15]} 14. e3 {[%emt 0:00:02]} Qe8 {[%emt 0:00:12]} 15. Ne2 {[%emt 0:00:04]} Rc8 {[%emt 0:00:08]} 16. Ne5 {[%emt 0:00:05]} Bd7 {[%emt 0:00:25]} 17. Qb3 {[%emt 0:00:11]} Nf6 {[%emt 0:00:15]} 18. Nc3 {[%emt 0:00:22]} Ne7 {[%emt 0:00:06]} 19. b5 {[%emt 0:00:16]} Be6 {[%emt 0:00:05]} 20. a4 {[%emt 0:00:01]} Rd8 {[%emt 0:00:16]} 21. Ba3 {[%emt 0:00:03]} Kh7 {[%emt 0:00:03]} 22. Rac1 {[%emt 0:00:03]} Rg8 {[%emt 0:00:11]} 23. Qc2 {[%emt 0:00:04]} Ng6 {[%emt 0:00:05]} 24. Ne2 {[%emt 0:00:05]} Rc8 {[%emt 0:00:03]} 25. Qb2 {[%emt 0:00:19]} Ne4 {[%emt 0:00:03]} 26. Nxg6 {[%emt 0:00:05]} Qxg6 {[%emt 0:00:05]} 27. Qc2 {[%emt 0:00:01]} Nd6 {[%emt 0:00:04]} 28. Bxd6 {[%emt 0:00:03]} cxd6 {[%emt 0:00:01]} 29. Qb3 {[%emt 0:00:02]} Rc4 {[%emt 0:00:03]} 30. Rc3 {[%emt 0:00:08]} Rgc8 {[%emt 0:00:01]} 31. Rdc1 {[%emt 0:00:01]} Qh5 {[%emt 0:00:02]} 32. Bf1 {[%emt 0:00:04]} Qf3 {[%emt 0:00:04]} 33. R3c2 {[%emt 0:00:10]} f4 {[%emt 0:00:10]} 34. Rxc4 {[%emt 0:00:07]} dxc4 {[%emt 0:00:03]} 35. Qc2+ {[%emt 0:00:01]} Kh8 {[%emt 0:00:01]} 36. Bg2 {[%emt 0:00:02]} Qg4 {[%emt 0:00:01]} 37. exf4 {[%emt 0:00:03]} gxf4 {[%emt 0:00:02]} 38. Nxf4 {[%emt 0:00:01]} Bxd4 {[%emt 0:00:02]} 39. Re1 {[%emt 0:00:08]} Be5 {[%emt 0:00:00]} 40. Ng6+ {[%emt 0:00:01]} Kg7 {[%emt 0:00:03]} 41. Nxe5 {[%emt 0:00:02]} dxe5 {[%emt 0:00:00]} 42. Rxe5 {[%emt 0:00:01]} c3 {[%emt 0:00:02]} 43. Bxb7 {[%emt 0:00:03]} Rd8 {[%emt 0:00:02]} 44. Qxc3 {[%emt 0:00:04]} Rd1+ {[%emt 0:00:03]} 45. Re1+ {[%emt 0:00:01]} 1-0

[Event "RUS-ch Men Blitz 2019"]
[Site "Sochi"]
[Date "2019.10.20"]
[Round "2.7"]
[White "Potkin, Vladimir"]
[Black "Ulybin, Mikhail"]
[Result "1/2-1/2"]
[ECO "A06"]
[WhiteElo "2583"]
[BlackElo "2455"]
[Annotator "ChessBase"]
[PlyCount "101"]
[EventDate "2019.10.17"]
[EventType "swiss"]
[EventCountry "RUS"]
[SourceTitle "playchess.com"]
[Source "ChessBase"]
[SourceQuality "1"]
[TimeControl "180+2"]

1. Nf3 {[%emt 0:00:00]} d5 {[%emt 0:00:01]} 2. e3 {[%emt 0:00:01]} Nf6 {[%emt 0:00:09]} 3. c4 {[%emt 0:00:01]} e6 {[%emt 0:00:04]} 4. Nc3 {[%emt 0:00:02]} c5 {[%emt 0:00:08]} 5. d4 {[%emt 0:00:05]} a6 {[%emt 0:00:05]} 6. cxd5 {[%emt 0:00:03]} exd5 {[%emt 0:00:03]} 7. g3 {[%emt 0:00:02]} Nc6 {[%emt 0:00:10]} 8. Bg2 {[%emt 0:00:02]} Bg4 {[%emt 0:00:39]} 9. O-O {[%emt 0:01:20]} cxd4 {[%emt 0:00:31]} 10. exd4 {[%emt 0:00:01]} Be7 {[%emt 0:00:02]} 11. h3 {[%emt 0:00:02]} Bf5 {[%emt 0:00:15]} 12. Ne5 {[%emt 0:00:21]} O-O {[%emt 0:00:17]} 13. Re1 {[%emt 0:00:01]} Re8 {[%emt 0:00:10]} 14. g4 {[%emt 0:00:03]} Be6 {[%emt 0:00:11]} 15. Be3 {[%emt 0:00:13]} Rc8 {[%emt 0:00:13]} 16. Rc1 {[%emt 0:00:07]} Na5 {[%emt 0:00:10]} 17. f4 {[%emt 0:00:06]} Nc4 {[%emt 0:00:08]} 18. Nxc4 {[%emt 0:00:04]} Rxc4 {[%emt 0:00:02]} 19. f5 {[%emt 0:00:01]} Bc8 {[%emt 0:00:05]} 20. Nxd5 {[%emt 0:00:15]} Rxc1 {[%emt 0:00:09]} 21. Nxe7+ {[%emt 0:00:07]} Rxe7 {[%emt 0:00:04]} 22. Qxc1 {[%emt 0:00:02]} b5 {[%emt 0:00:04]} 23. d5 {[%emt 0:00:31]} Bb7 {[%emt 0:00:02]} 24. Bg5 {[%emt 0:00:05]} Rxe1+ 25. Qxe1 {[%emt 0:00:01]} h6 {[%emt 0:00:04]} 26. Bxf6 {[%emt 0:00:10]} Qxf6 27. Qd2 Qd6 {[%emt 0:00:02]} 28. Kf2 {[%emt 0:00:02]} Kf8 {[%emt 0:00:02]} 29. Qd4 {[%emt 0:00:02]} f6 {[%emt 0:00:02]} 30. b4 {[%emt 0:00:01]} Kf7 {[%emt 0:00:01]} 31. a3 {[%emt 0:00:01]} Qd7 {[%emt 0:00:01]} 32. d6 {[%emt 0:00:02]} Bxg2 {[%emt 0:00:03]} 33. Kxg2 {[%emt 0:00:01]} Qc6+ {[%emt 0:00:01]} 34. Kg3 {[%emt 0:00:01]} Kf8 {[%emt 0:00:02]} 35. d7 {[%emt 0:00:03]} Qc7+ {[%emt 0:00:01]} 36. Kf3 {[%emt 0:00:02]} Ke7 {[%emt 0:00:01]} 37. Ke4 {[%emt 0:00:06]} Qc6+ {[%emt 0:00:03]} 38. Qd5 {[%emt 0:00:03]} Qc2+ {[%emt 0:00:01]} 39. Kd4 {[%emt 0:00:01]} Qf2+ {[%emt 0:00:01]} 40. Kd3 {[%emt 0:00:02]} Qf1+ {[%emt 0:00:02]} 41. Kc2 {[%emt 0:00:01]} Qe2+ {[%emt 0:00:01]} 42. Kc3 {[%emt 0:00:02]} Qe3+ {[%emt 0:00:01]} 43. Kc2 {[%emt 0:00:02]} Qe2+ {[%emt 0:00:01]} 44. Kc3 {[%emt 0:00:01]} Qe3+ {[%emt 0:00:01]} 45. Qd3 {[%emt 0:00:01]} Qxd3+ {[%emt 0:00:02]} 46. Kxd3 {[%emt 0:00:01]} Kxd7 {[%emt 0:00:01]} 47. Ke4 {[%emt 0:00:01]} Kc6 {[%emt 0:00:02]} 48. Kd4 {[%emt 0:00:02]} Kd6 {[%emt 0:00:01]} 49. Ke4 {[%emt 0:00:02]} Kc6 {[%emt 0:00:01]} 50. Kd4 {[%emt 0:00:04]} Kd6 {[%emt 0:00:01]} 51. Ke4 {[%emt 0:00:03] Ke5+} 1/2-1/2

[Event "RUS-ch Men Blitz 2019"]
[Site "Sochi"]
[Date "2019.10.17"]
[Round "2.9"]
[White "Mikhailovsky, Vladimir"]
[Black "Timofeev, Artyom"]
[Result "1-0"]
[ECO "B21"]
[WhiteElo "2209"]
[BlackElo "2595"]
[Annotator "ChessBase"]
[PlyCount "81"]
[EventDate "2019.10.17"]
[EventType "swiss"]
[EventCountry "RUS"]
[SourceTitle "playchess.com"]
[Source "ChessBase"]
[SourceQuality "1"]
[TimeControl "180+2"]

1. e4 {[%emt 0:00:00]} c5 {[%emt 0:00:00]} 2. d4 {[%emt 0:00:00]} cxd4 {[%emt 0:00:00]} 3. c3 {[%emt 0:00:01]} d3 {[%emt 0:00:03]} 4. Bxd3 {[%emt 0:00:02]} Nc6 {[%emt 0:00:01]} 5. Nf3 {[%emt 0:00:02]} d6 {[%emt 0:00:02]} 6. O-O {[%emt 0:00:02]} g6 {[%emt 0:00:02]} 7. Nbd2 {[%emt 0:00:02]} Bg7 {[%emt 0:00:01]} 8. Qe2 {[%emt 0:00:02]} Nf6 {[%emt 0:00:02]} 9. Nc4 {[%emt 0:00:02]} O-O {[%emt 0:00:03]} 10. h3 {[%emt 0:00:01]} Be6 {[%emt 0:00:03]} 11. Bf4 {[%emt 0:00:02]} d5 {[%emt 0:00:16]} 12. exd5 {[%emt 0:00:06]} Bxd5 {[%emt 0:00:02]} 13. Rad1 {[%emt 0:00:05]} Qe8 {[%emt 0:00:03]} 14. Rfe1 {[%emt 0:00:33]} Rd8 {[%emt 0:00:02]} 15. Bc7 {[%emt 0:00:40]} Rc8 {[%emt 0:00:17]} 16. Bh2 {[%emt 0:00:05]} Bxc4 {[%emt 0:00:19]} 17. Bxc4 {[%emt 0:00:02]} a6 {[%emt 0:00:01]} 18. Ne5 {[%emt 0:00:06]} Nxe5 {[%emt 0:00:04]} 19. Bxe5 {[%emt 0:00:02]} Qc6 {[%emt 0:00:03]} 20. Bb3 {[%emt 0:00:03]} Rfd8 {[%emt 0:00:05]} 21. Rd4 {[%emt 0:00:06]} Rxd4 {[%emt 0:00:04]} 22. Bxd4 {[%emt 0:00:02]} e6 {[%emt 0:00:03]} 23. Rd1 {[%emt 0:00:17]} Ne4 {[%emt 0:00:06]} 24. Be3 {[%emt 0:00:11]} Nd6 {[%emt 0:00:16]} 25. Qd3 {[%emt 0:00:11]} Nf5 {[%emt 0:00:02]} 26. Bf4 {[%emt 0:00:04]} Bf6 {[%emt 0:00:03]} 27. Qd7 {[%emt 0:00:03]} Qxd7 {[%emt 0:00:13]} 28. Rxd7 {[%emt 0:00:01]} b5 {[%emt 0:00:01]} 29. Ra7 {[%emt 0:00:11]} Rc6 {[%emt 0:00:01]} 30. g4 {[%emt 0:00:06]} Nd6 {[%emt 0:00:24]} 31. g5 {[%emt 0:00:18]} Bg7 {[%emt 0:00:04]} 32. Ra8+ {[%emt 0:00:05]} Bf8 {[%emt 0:00:03]} 33. Bd1 {[%emt 0:00:04]} Nc4 {[%emt 0:00:20]} 34. Bf3 {[%emt 0:00:02]} Rc5 35. b3 {[%emt 0:00:14]} Rf5 {[%emt 0:00:03]} 36. Bc7 {[%emt 0:00:10]} Rxg5+ {[%emt 0:00:22]} 37. Kf1 {[%emt 0:00:05]} Nd2+ {[%emt 0:00:29]} 38. Ke2 {[%emt 0:00:01]} Nxf3 {[%emt 0:00:01]} 39. Bd6 {[%emt 0:00:01]} Ng1+ {[%emt 0:00:03]} 40. Kf1 {[%emt 0:00:01]} h5 {[%emt 0:00:05]} 41. Bxf8 {[%emt 0:00:04]} 1-0

[Event "RUS-ch Men Blitz 2019"]
[Site "Sochi"]
[Date "2019.10.20"]
[Round "2.10"]
[White "Rozum, Ivan"]
[Black "Girshgorn, Leonid"]
[Result "0-1"]
[ECO "B06"]
[WhiteElo "2599"]
[BlackElo "2408"]
[Annotator "ChessBase"]
[PlyCount "270"]
[EventDate "2019.10.17"]
[EventType "swiss"]
[EventCountry "RUS"]
[SourceTitle "playchess.com"]
[Source "ChessBase"]
[SourceQuality "1"]
[TimeControl "180+2"]

1. d4 {[%emt 0:00:00]} g6 {[%emt 0:00:08]} 2. e4 {[%emt 0:00:02]} Bg7 {[%emt 0:00:01]} 3. c3 {[%emt 0:00:01]} d6 {[%emt 0:00:05]} 4. Bd3 {[%emt 0:00:01]} e5 {[%emt 0:00:02]} 5. Nf3 {[%emt 0:00:01]} Ne7 {[%emt 0:00:03]} 6. O-O {[%emt 0:00:03]} O-O {[%emt 0:00:02]} 7. Re1 {[%emt 0:00:05]} Bg4 {[%emt 0:00:06]} 8. Be3 {[%emt 0:00:11]} exd4 {[%emt 0:00:06]} 9. Bxd4 {[%emt 0:00:04]} Nbc6 {[%emt 0:00:14]} 10. Bxg7 {[%emt 0:00:02]} Kxg7 {[%emt 0:00:01]} 11. Be2 {[%emt 0:00:09]} Bxf3 {[%emt 0:00:03]} 12. Bxf3 {[%emt 0:00:01]} Ne5 {[%emt 0:00:01]} 13. Be2 {[%emt 0:00:03]} N7c6 {[%emt 0:00:03]} 14. f4 {[%emt 0:00:02]} Nd7 {[%emt 0:00:01]} 15. Bc4 {[%emt 0:00:12]} Qf6 {[%emt 0:00:02]} 16. Qf3 {[%emt 0:00:05]} Rae8 {[%emt 0:00:02]} 17. Nd2 {[%emt 0:00:01]} Nc5 {[%emt 0:00:15]} 18. Re2 {[%emt 0:00:10]} Ne6 {[%emt 0:00:02]} 19. g3 {[%emt 0:00:05]} Nc5 {[%emt 0:00:08]} 20. Rae1 {[%emt 0:00:03]} h5 {[%emt 0:00:07]} 21. Kg2 {[%emt 0:00:03]} h4 {[%emt 0:00:01]} 22. b4 {[%emt 0:00:12]} Ne6 {[%emt 0:00:31]} 23. Bd5 {[%emt 0:00:08]} Rh8 {[%emt 0:00:07]} 24. Bxc6 {[%emt 0:00:13]} bxc6 {[%emt 0:00:02]} 25. e5 {[%emt 0:00:01]} dxe5 {[%emt 0:00:03]} 26. Rxe5 {[%emt 0:00:01]} Rd8 {[%emt 0:00:06]} 27. Ne4 {[%emt 0:00:04]} Qe7 {[%emt 0:00:01]} 28. Nc5 {[%emt 0:00:08]} Rd2+ {[%emt 0:00:07]} 29. R1e2 {[%emt 0:00:01]} h3+ {[%emt 0:00:05]} 30. Kf2 {[%emt 0:00:08]} Rhd8 {[%emt 0:00:04]} 31. Nxe6+ {[%emt 0:00:05]} fxe6 {[%emt 0:00:01]} 32. Qg4 {[%emt 0:00:21]} Rxe2+ {[%emt 0:00:36]} 33. Rxe2 {[%emt 0:00:03]} Rd6 {[%emt 0:00:02]} 34. Qxh3 {[%emt 0:00:03]} Qf6 {[%emt 0:00:01]} 35. Re3 {[%emt 0:00:29]} Rd2+ {[%emt 0:00:01]} 36. Ke1 {[%emt 0:00:01]} Rd6 {[%emt 0:00:26]} 37. Qg4 {[%emt 0:00:04]} Kf7 {[%emt 0:00:04]} 38. h4 {[%emt 0:00:04]} Rd5 {[%emt 0:00:03]} 39. Ke2 {[%emt 0:00:13]} c5 {[%emt 0:00:01]} 40. a3 {[%emt 0:00:04]} cxb4 {[%emt 0:00:03]} 41. axb4 {[%emt 0:00:01]} a5 {[%emt 0:00:03]} 42. bxa5 {[%emt 0:00:04]} Rxa5 {[%emt 0:00:02]} 43. Kf3 {[%emt 0:00:11]} Rd5 {[%emt 0:00:06]} 44. Kg2 {[%emt 0:00:06]} Qe7 {[%emt 0:00:06]} 45. Qf3 {[%emt 0:00:05]} Qd6 {[%emt 0:00:09]} 46. Qe4 {[%emt 0:00:01]} Rd2+ {[%emt 0:00:03]} 47. Kh3 {[%emt 0:00:01]} Qd7 {[%emt 0:00:03]} 48. g4 {[%emt 0:00:10]} Rd5 {[%emt 0:00:02]} 49. Kg3 {[%emt 0:00:03]} Rd1 {[%emt 0:00:01]} 50. h5 {[%emt 0:00:04]} gxh5 {[%emt 0:00:02]} 51. Qh7+ {[%emt 0:00:00]} Kf8 {[%emt 0:00:02]} 52. Qh8+ {[%emt 0:00:02]} Ke7 {[%emt 0:00:01]} 53. Qh7+ {[%emt 0:00:04]} Kf8 {[%emt 0:00:04]} 54. Qh6+ {[%emt 0:00:02]} Kg8 {[%emt 0:00:04]} 55. Qg6+ Kf8 56. Qf6+ {[%emt 0:00:05]} Kg8 {[%emt 0:00:02]} 57. Qg5+ {[%emt 0:00:02]} Kf8 {[%emt 0:00:01]} 58. Qxh5 {[%emt 0:00:01]} Rg1+ {[%emt 0:00:04]} 59. Kf2 {[%emt 0:00:01]} Qd2+ {[%emt 0:00:02]} 60. Kxg1 Qxe3+ {[%emt 0:00:00]} 61. Kg2 {[%emt 0:00:03]} Qxf4 {[%emt 0:00:04]} 62. Qg6 {[%emt 0:00:04]} Qd2+ {[%emt 0:00:02]} 63. Kg3 {[%emt 0:00:02]} Qxc3+ {[%emt 0:00:01]} 64. Kh4 {[%emt 0:00:00]} Qh8+ {[%emt 0:00:01]} 65. Kg3 {[%emt 0:00:01]} Qe5+ {[%emt 0:00:01]} 66. Kf3 {[%emt 0:00:02]} c5 {[%emt 0:00:03]} 67. Qh6+ {[%emt 0:00:01]} Kf7 {[%emt 0:00:03]} 68. Qh7+ {[%emt 0:00:02]} Qg7 {[%emt 0:00:01]} 69. Qd3 {[%emt 0:00:03]} Qe5 {[%emt 0:00:05]} 70. Qd7+ {[%emt 0:00:04]} Kf6 {[%emt 0:00:02]} 71. Qd8+ {[%emt 0:00:01]} Kg6 {[%emt 0:00:01]} 72. Qe8+ {[%emt 0:00:02]} Kh7 {[%emt 0:00:02]} 73. Qe7+ {[%emt 0:00:02]} Kh6 {[%emt 0:00:02]} 74. Qf8+ {[%emt 0:00:04]} Qg7 {[%emt 0:00:01]} 75. Qxc5 {[%emt 0:00:02]} Qf6+ {[%emt 0:00:02]} 76. Kg3 {[%emt 0:00:02]} Kg6 {[%emt 0:00:03]} 77. Qc2+ {[%emt 0:00:01]} Kg7 {[%emt 0:00:01]} 78. Qc7+ {[%emt 0:00:02]} Kg6 {[%emt 0:00:02]} 79. Qc5 {[%emt 0:00:05]} e5 {[%emt 0:00:01]} 80. Qc2+ {[%emt 0:00:04]} Kh6 {[%emt 0:00:02]} 81. Qd2+ {[%emt 0:00:00]} Kg7 {[%emt 0:00:02]} 82. Qe3 {[%emt 0:00:01]} Kg6 {[%emt 0:00:03]} 83. Kh3 {[%emt 0:00:02]} Qh8+ {[%emt 0:00:03]} 84. Kg2 {[%emt 0:00:01]} Qf6 {[%emt 0:00:02]} 85. Qd3+ {[%emt 0:00:00]} Kg5 {[%emt 0:00:02]} 86. Qe2 {[%emt 0:00:06]} Qf4 {[%emt 0:00:01]} 87. Kh3 {[%emt 0:00:01]} e4 {[%emt 0:00:01]} 88. Qb5+ {[%emt 0:00:01]} Kf6 {[%emt 0:00:01]} 89. Qc6+ {[%emt 0:00:01]} Ke7 {[%emt 0:00:04]} 90. Qc5+ {[%emt 0:00:01]} Ke6 {[%emt 0:00:03]} 91. Qc4+ {[%emt 0:00:02]} Kd6 {[%emt 0:00:01]} 92. Qd4+ {[%emt 0:00:02]} Kc6 {[%emt 0:00:01]} 93. Kh4 {[%emt 0:00:02]} Qh2+ {[%emt 0:00:04]} 94. Kg5 {[%emt 0:00:01]} Qg2 {[%emt 0:00:03]} 95. Kf4 {[%emt 0:00:01]} Qf3+ {[%emt 0:00:01]} 96. Kg5 {[%emt 0:00:01]} e3 {[%emt 0:00:00]} 97. Qc3+ {[%emt 0:00:02]} Kd5 {[%emt 0:00:02]} 98. Qd3+ {[%emt 0:00:01]} Kc5 {[%emt 0:00:02]} 99. Qc3+ {[%emt 0:00:01]} Kb5 {[%emt 0:00:01]} 100. Qb3+ {[%emt 0:00:01]} Kc5 {[%emt 0:00:01]} 101. Qc3+ {[%emt 0:00:01]} Kd6 {[%emt 0:00:01]} 102. Qb4+ {[%emt 0:00:03]} Ke5 {[%emt 0:00:03]} 103. Qc5+ {[%emt 0:00:02]} Ke6 {[%emt 0:00:03]} 104. Qc8+ {[%emt 0:00:04]} Kd6 {[%emt 0:00:04]} 105. Qd8+ {[%emt 0:00:03]} Kc5 {[%emt 0:00:00]} 106. Qa5+ {[%emt 0:00:02]} Kd4 {[%emt 0:00:03]} 107. Qb4+ {[%emt 0:00:01]} Kd3 {[%emt 0:00:01]} 108. Qb3+ {[%emt 0:00:02]} Ke2 {[%emt 0:00:02]} 109. Qc2+ {[%emt 0:00:04]} Kf1 {[%emt 0:00:01]} 110. Qc4+ {[%emt 0:00:04]} e2 {[%emt 0:00:01]} 111. Kh6 {[%emt 0:00:04]} Qf6+ {[%emt 0:00:01]} 112. Kh5 {[%emt 0:00:01]} Qh8+ {[%emt 0:00:05]} 113. Kg6 {[%emt 0:00:01]} Qe8+ {[%emt 0:00:02]} 114. Kh6 {[%emt 0:00:03]} Kg2 {[%emt 0:00:06]} 115. Qc2 {[%emt 0:00:02]} Qe6+ {[%emt 0:00:01]} 116. Kh5 {[%emt 0:00:02]} Kg3 {[%emt 0:00:02]} 117. Qc3+ {[%emt 0:00:02]} Kh2 {[%emt 0:00:02]} 118. Qc7+ {[%emt 0:00:02]} Kg1 {[%emt 0:00:02]} 119. Qc5+ {[%emt 0:00:02]} Kf1 {[%emt 0:00:01]} 120. Qb5 {[%emt 0:00:02]} Kg2 {[%emt 0:00:02]} 121. Qb7+ {[%emt 0:00:03]} Kh3 {[%emt 0:00:03]} 122. Qh1+ {[%emt 0:00:02]} Kg3 {[%emt 0:00:00]} 123. Qe1+ {[%emt 0:00:01]} Kf3 {[%emt 0:00:01]} 124. g5 {[%emt 0:00:05]} Qh3+ {[%emt 0:00:01]} 125. Kg6 {[%emt 0:00:01]} Qf1 {[%emt 0:00:01]} 126. Qc3+ {[%emt 0:00:01]} Kg2 {[%emt 0:00:02]} 127. Qc6+ {[%emt 0:00:02]} Kf2 {[%emt 0:00:04]} 128. Qc5+ {[%emt 0:00:01]} Kg3 {[%emt 0:00:01]} 129. Qe5+ {[%emt 0:00:05]} Kg2 {[%emt 0:00:02]} 130. Qb2 {[%emt 0:00:04]} Qf2 {[%emt 0:00:03]} 131. Qb7+ {[%emt 0:00:01]} Kg1 {[%emt 0:00:02]} 132. Kh7 {[%emt 0:00:03]} e1=Q {[%emt 0:00:01]} 133. g6 {[%emt 0:00:01]} Qh4+ {[%emt 0:00:02]} 134. Kg8 {[%emt 0:00:00]} Qe8+ {[%emt 0:00:01]} 135. Kg7 {[%emt 0:00:01]} Qhh8# {[%emt 0:00:01]} 0-1

[Event "RUS-ch Men Blitz 2019"]
[Site "Sochi"]
[Date "2019.10.17"]
[Round "2.10"]
[White "Kokarev, Dmitry"]
[Black "Jary, Sergey"]
[Result "0-1"]
[ECO "C11"]
[WhiteElo "2593"]
[BlackElo "2275"]
[Annotator "ChessBase"]
[PlyCount "58"]
[EventDate "2019.10.17"]
[EventType "swiss"]
[EventCountry "RUS"]
[SourceTitle "playchess.com"]
[Source "ChessBase"]
[SourceQuality "1"]
[TimeControl "180+2"]

1. e4 {[%emt 0:00:01]} e6 {[%emt 0:00:00]} 2. d4 {[%emt 0:00:02]} d5 {[%emt 0:00:00]} 3. Nc3 {[%emt 0:00:01]} Nf6 {[%emt 0:00:00]} 4. Bg5 {[%emt 0:00:02]} dxe4 {[%emt 0:00:02]} 5. Nxe4 {[%emt 0:00:03]} Nbd7 {[%emt 0:00:01]} 6. Nf3 {[%emt 0:00:07]} Be7 {[%emt 0:00:01]} 7. Nxf6+ {[%emt 0:00:04]} Nxf6 {[%emt 0:00:02]} 8. c3 {[%emt 0:00:09]} O-O {[%emt 0:00:05]} 9. Qc2 {[%emt 0:00:15]} h6 {[%emt 0:00:19]} 10. Bxf6 {[%emt 0:00:02]} Bxf6 {[%emt 0:00:01]} 11. O-O-O {[%emt 0:00:03]} Qe7 {[%emt 0:00:01]} 12. h4 {[%emt 0:00:09]} e5 {[%emt 0:00:15]} 13. Re1 {[%emt 0:00:05]} e4 {[%emt 0:00:13]} 14. Rxe4 {[%emt 0:00:15]} Qd6 {[%emt 0:00:10]} 15. Bd3 {[%emt 0:00:03]} b5 {[%emt 0:00:18]} 16. g4 {[%emt 0:00:21]} Bb7 {[%emt 0:00:04]} 17. g5 {[%emt 0:00:02]} Bxe4 {[%emt 0:00:03]} 18. Bxe4 {[%emt 0:00:01]} Qf4+ {[%emt 0:00:03]} 19. Kb1 {[%emt 0:00:05]} Rae8 {[%emt 0:00:02]} 20. Bc6 {[%emt 0:00:38]} Re6 {[%emt 0:00:07]} 21. gxf6 {[%emt 0:00:04]} Rxc6 {[%emt 0:00:09]} 22. fxg7 {[%emt 0:00:02]} Re8 {[%emt 0:00:04]} 23. Ne5 {[%emt 0:00:03]} Rce6 {[%emt 0:00:18]} 24. a3 {[%emt 0:00:03]} c5 {[%emt 0:00:04]} 25. Rg1 {[%emt 0:00:12]} cxd4 {[%emt 0:00:11]} 26. cxd4 {[%emt 0:00:22]} Qxd4 {[%emt 0:00:09]} 27. Nxf7 {[%emt 0:00:02]} Re1+ {[%emt 0:00:03]} 28. Ka2 {[%emt 0:00:09]} Qd5+ {[%emt 0:00:08]} 29. b3 {[%emt 0:00:00]} Qxf7 {[%emt 0:00:04]} 0-1

[Event "RUS-ch Men Blitz 2019"]
[Site "Sochi"]
[Date "2019.10.17"]
[Round "2.11"]
[White "Zakaryan, David"]
[Black "Golubov, Saveliy"]
[Result "1-0"]
[ECO "B06"]
[WhiteElo "2338"]
[BlackElo "2469"]
[Annotator "RC"]
[PlyCount "108"]
[EventDate "2019.10.17"]
[EventType "swiss"]
[EventCountry "RUS"]
[SourceTitle "playchess.com"]
[Source "ChessBase"]
[SourceQuality "1"]
[TimeControl "180+2"]

1. d4 {[%emt 0:00:00]} g6 {[%emt 0:00:00]} 2. Nc3 {[%emt 0:00:02]} Bg7 {[%emt 0:00:00]} 3. e4 {[%emt 0:00:01]} d6 {[%emt 0:00:00]} 4. Be3 {[%emt 0:00:03]} a6 {[%emt 0:00:02]} 5. a4 {[%emt 0:00:02]} b6 {[%emt 0:00:01]} 6. Nge2 {[%emt 0:00:07]} Bb7 {[%emt 0:00:03]} 7. g3 {[%emt 0:00:02]} Nf6 {[%emt 0:00:02]} 8. Bg2 {[%emt 0:00:01]} O-O {[%emt 0:00:05]} 9. h3 {[%emt 0:00:02]} e5 {[%emt 0:00:03]} 10. dxe5 {[%emt 0:00:02]} dxe5 {[%emt 0:00:02]} 11. Qxd8 {[%emt 0:00:02]} Rxd8 {[%emt 0:00:02]} 12. O-O Nc6 {[%emt 0:00:00]} 13. Rfd1 {[%emt 0:00:21]} Nb4 {[%emt 0:00:02]} 14. Rxd8+ {[%emt 0:00:02]} Rxd8 {[%emt 0:00:02]} 15. Rc1 Ne8 16. b3 {[%emt 0:00:05]} Bf8 {[%emt 0:00:20]} 17. Nd5 {[%emt 0:00:23]} Kg7 {[%emt 0:00:55]} 18. Nec3 {[%emt 0:00:23]} f5 {[%emt 0:00:06]} 19. Nxb4 {[%emt 0:00:07]} Bxb4 {[%emt 0:00:01]} 20. Nd5 {[%emt 0:00:00]} Ba3 {[%emt 0:00:46]} 21. Ra1 {[%emt 0:00:04]} Bb2 {[%emt 0:00:01]} 22. Rb1 {[%emt 0:00:02]} Bd4 {[%emt 0:00:04]} 23. Bxd4 {[%emt 0:00:28]} exd4 {[%emt 0:00:01]} 24. Nf4 {[%emt 0:00:00]} Bc8 {[%emt 0:00:18]} 25. exf5 {[%emt 0:00:06]} Bxf5 {[%emt 0:00:02]} 26. g4 {[%emt 0:00:17]} Bc8 {[%emt 0:00:29]} 27. Re1 {[%emt 0:00:04]} Kf8 {[%emt 0:00:03]} 28. Bc6 {[%emt 0:00:12]} Nd6 {[%emt 0:00:11]} 29. Kh2 {[%emt 0:00:13]} Kf7 {[%emt 0:00:11]} 30. Nd5 {[%emt 0:00:04]} Kf8 {[%emt 0:00:05]} 31. Nxc7 {[%emt 0:00:06]} Nf7 {[%emt 0:00:01]} 32. Kg3 {[%emt 0:00:08]} d3 {[%emt 0:00:02]} 33. cxd3 {[%emt 0:00:03]} Rxd3+ {[%emt 0:00:01]} 34. f3 {[%emt 0:00:02]} Kg7 {[%emt 0:00:04]} 35. Ne8+ {[%emt 0:00:05]} Kf8 {[%emt 0:00:02]} 36. Nf6 {[%emt 0:00:03]} Rd6 {[%emt 0:00:02]} 37. Re8+ Kg7 38. Rxc8 {[%emt 0:00:15]} Kxf6 {[%emt 0:00:01]} 39. Bb7 {[%emt 0:00:03]} a5 {[%emt 0:00:03]} 40. h4 {[%emt 0:00:01]} Ne5 {[%emt 0:00:03]} 41. Be4 {[%emt 0:00:04]} h6 {[%emt 0:00:02]} 42. Re8 {[%emt 0:00:03]} g5 {[%emt 0:00:02]} 43. hxg5+ {[%emt 0:00:03]} hxg5 {[%emt 0:00:01]} 44. Rf8+ {[%emt 0:00:01]} Ke7 {[%emt 0:00:04]} 45. Rf5 {[%emt 0:00:02]} Nd7 {[%emt 0:00:02]} 46. Rxg5 {[%emt 0:00:01]} Rd4 {[%emt 0:00:02]} 47. Rb5 {[%emt 0:00:06]} Rd6 {[%emt 0:00:02]} 48. f4 {[%emt 0:00:02]} Nc5 {[%emt 0:00:00]} 49. Bf5 {[%emt 0:00:02]} Na6 {[%emt 0:00:04]} 50. g5 {[%emt 0:00:01]} Nc5 {[%emt 0:00:01]} 51. Kg4 {[%emt 0:00:02]} Kf7 {[%emt 0:00:03]} 52. b4 {[%emt 0:00:02]} axb4 {[%emt 0:00:00]} 53. Rxb4 {[%emt 0:00:01]} Nb7 {[%emt 0:00:04]} 54. Rc4 {[%emt 0:00:03]} Rd8 {[%emt 0:00:02]} 1-0